[Event "*** MasterClass Titled Tuesday Blitz"]
[Site "Chess.com"]
[Date "2017.12.05"]
[Round "3"]
[White "VeryAnonymousPatzer"]
[Black "zzzombie"]
[Result "1-0"]
[WhiteElo "1127"]
[BlackElo "1174"]
[TimeControl "180+2"]
[EndTime "14:50:18 PST"]
[Termination "VeryAnonymousPatzer won by checkmate"]

1. e4 {[%clk 0:03:01.9]} 1... e5 {[%clk 0:03:00.6]} 2. Nf3 {[%clk 0:03:01.7]}
2... Nc6 {[%clk 0:03:01.6]} 3. Bc4 {[%clk 0:03:00.6]} 3... Nf6 {[%clk
0:03:00.8]} 4. d3 {[%clk 0:02:59.6]} 4... h6 {[%clk 0:03:00.6]} 5. Be3 {[%clk
0:02:56.4]} 5... d5 {[%clk 0:02:57]} 6. exd5 {[%clk 0:02:56.1]} 6... Nxd5 {[%clk
0:02:57.5]} 7. O-O {[%clk 0:02:45.1]} 7... Nxe3 {[%clk 0:02:54.2]} 8. fxe3
{[%clk 0:02:35.8]} 8... f5 {[%clk 0:02:52.6]} 9. Nc3 {[%clk 0:02:23.2]} 9... Bd7
{[%clk 0:02:44.8]} 10. e4 {[%clk 0:02:02.8]} 10... Bc5+ {[%clk 0:02:44.7]} 11.
Kh1 {[%clk 0:01:57.8]} 11... g5 {[%clk 0:02:43.8]} 12. Nd5 {[%clk 0:01:53.1]}
12... g4 {[%clk 0:02:40.3]} 13. Ng1 {[%clk 0:01:43.8]} 13... f4 {[%clk
0:02:38.7]} 14. Nxf4 {[%clk 0:01:40.6]} 14... exf4 {[%clk 0:02:39.2]} 15. Rxf4
{[%clk 0:01:42.5]} 15... Bd6 {[%clk 0:02:14]} 16. Bf7+ {[%clk 0:01:35.3]} 16...
Ke7 {[%clk 0:02:12]} 17. Rf2 {[%clk 0:01:27.8]} 17... Ne5 {[%clk 0:02:10.8]} 18.
Bh5 {[%clk 0:01:20.3]} 18... g3 {[%clk 0:01:40.4]} 19. hxg3 {[%clk 0:01:09]}
19... Ng4 {[%clk 0:01:28.7]} 20. Bxg4 {[%clk 0:01:06.8]} 20... Bxg4 {[%clk
0:01:29.2]} 21. Qxg4 {[%clk 0:01:04]} 21... Rg8 {[%clk 0:01:29.1]} 22. Qh4+
{[%clk 0:01:00.1]} 22... Rg5 {[%clk 0:01:24]} 23. Nh3 {[%clk 0:00:56.2]} 23...
Bxg3 {[%clk 0:01:24.5]} 24. Qxh6 {[%clk 0:00:41.4]} 24... Kd7 {[%clk 0:01:00.9]}
25. Rf7+ {[%clk 0:00:23.7]} 25... Kc8 {[%clk 0:00:59.8]} 26. Qxg5 {[%clk
0:00:18.1]} 26... Qxg5 {[%clk 0:00:58.7]} 27. Nxg5 {[%clk 0:00:19]} 27... b6
{[%clk 0:01:00.1]} 28. Raf1 {[%clk 0:00:18.1]} 28... Kb7 {[%clk 0:01:00.3]} 29.
Rf8 {[%clk 0:00:17.3]} 29... Rxf8 {[%clk 0:00:57.8]} 30. Rxf8 {[%clk 0:00:19.2]}
30... Bh4 {[%clk 0:00:50.2]} 31. Rf5 {[%clk 0:00:16.3]} 31... Bxg5 {[%clk
0:00:50.8]} 32. Rxg5 {[%clk 0:00:16.4]} 32... Kc6 {[%clk 0:00:51.8]} 33. e5
{[%clk 0:00:17.4]} 33... Kd7 {[%clk 0:00:53]} 34. d4 {[%clk 0:00:19.3]} 34...
Ke6 {[%clk 0:00:54]} 35. c3 {[%clk 0:00:20.7]} 35... c5 {[%clk 0:00:54.6]} 36.
g4 {[%clk 0:00:21.9]} 36... cxd4 {[%clk 0:00:55.5]} 37. cxd4 {[%clk 0:00:23.6]}
37... Kd5 {[%clk 0:00:56.7]} 38. Rf5 {[%clk 0:00:24.1]} 38... Kxd4 {[%clk
0:00:57.6]} 39. g5 {[%clk 0:00:25.2]} 39... Kd5 {[%clk 0:00:59.5]} 40. g6 {[%clk
0:00:25]} 40... Ke6 {[%clk 0:01:01.4]} 41. Rf6+ {[%clk 0:00:25.1]} 41... Kxe5
{[%clk 0:01:02]} 42. g7 {[%clk 0:00:25.8]} 42... Kxf6 {[%clk 0:01:03.9]} 43.
g8=Q {[%clk 0:00:26.7]} 43... Kf5 {[%clk 0:01:00.3]} 44. Qa8 {[%clk 0:00:25.4]}
44... b5 {[%clk 0:01:00.2]} 45. Qxa7 {[%clk 0:00:26.4]} 45... Ke4 {[%clk
0:00:58.9]} 46. Qc5 {[%clk 0:00:28.3]} 46... Kf3 {[%clk 0:00:55.7]} 47. Qxb5
{[%clk 0:00:30.2]} 47... Kf2 {[%clk 0:00:46.4]} 48. a4 {[%clk 0:00:30.5]} 48...
Kf3 {[%clk 0:00:47.4]} 49. a5 {[%clk 0:00:31.7]} 49... Kf4 {[%clk 0:00:49.3]}
50. a6 {[%clk 0:00:33.5]} 50... Ke3 {[%clk 0:00:51.2]} 51. a7 {[%clk 0:00:35.3]}
51... Kd2 {[%clk 0:00:53.1]} 52. a8=Q {[%clk 0:00:34.4]} 52... Kc2 {[%clk
0:00:55]} 53. Qe4+ {[%clk 0:00:34.9]} 53... Kc1 {[%clk 0:00:56.1]} 54. Qf1+
{[%clk 0:00:33.7]} 54... Kd2 {[%clk 0:00:56.3]} 55. Qfe1# {[%clk 0:00:34.9]} 1-0

[Event "*** MasterClass Titled Tuesday Blitz"]
[Site "Chess.com"]
[Date "2017.12.05"]
[Round "3"]
[White "B-man"]
[Black "gmjoey1"]
[Result "0-1"]
[WhiteElo "2347"]
[BlackElo "2490"]
[TimeControl "180+2"]
[EndTime "14:50:20 PST"]
[Termination "gmjoey1 won by checkmate"]

1. d4 {[%clk 0:03:01.9]} 1... Nf6 {[%clk 0:02:59.8]} 2. c4 {[%clk 0:03:02.9]}
2... e6 {[%clk 0:03:00.9]} 3. Nc3 {[%clk 0:03:02]} 3... Bb4 {[%clk 0:03:01.1]}
4. e3 {[%clk 0:03:03.4]} 4... O-O {[%clk 0:03:00]} 5. Bd3 {[%clk 0:03:03]} 5...
c5 {[%clk 0:02:58.3]} 6. a3 {[%clk 0:03:01.8]} 6... Ba5 {[%clk 0:02:52.1]} 7.
Ne2 {[%clk 0:02:46.7]} 7... d5 {[%clk 0:02:51.7]} 8. O-O {[%clk 0:02:41.9]} 8...
cxd4 {[%clk 0:02:51.1]} 9. exd4 {[%clk 0:02:41.6]} 9... dxc4 {[%clk 0:02:51.3]}
10. Bxc4 {[%clk 0:02:43.2]} 10... a6 {[%clk 0:02:48.2]} 11. Bg5 {[%clk
0:02:37.3]} 11... b5 {[%clk 0:02:47.9]} 12. Ba2 {[%clk 0:02:33.6]} 12... Bb7
{[%clk 0:02:48.1]} 13. d5 {[%clk 0:02:23.7]} 13... exd5 {[%clk 0:02:40.6]} 14.
Nxd5 {[%clk 0:01:35.1]} 14... Bxd5 {[%clk 0:02:33.3]} 15. Bxf6 {[%clk
0:01:35.4]} 15... Qxf6 {[%clk 0:02:35]} 16. Bxd5 {[%clk 0:01:31.4]} 16... Ra7
{[%clk 0:02:33.6]} 17. b4 {[%clk 0:01:32.4]} 17... Bb6 {[%clk 0:02:31.4]} 18.
Ra2 {[%clk 0:01:07.2]} 18... Rd7 {[%clk 0:02:26.6]} 19. Qb3 {[%clk 0:00:57.9]}
19... Rfd8 {[%clk 0:02:25.3]} 20. Rd2 {[%clk 0:00:32.3]} 20... Nc6 {[%clk
0:02:08.7]} 21. Nc3 {[%clk 0:00:17.6]} 21... Nd4 {[%clk 0:02:00.1]} 22. Qa2
{[%clk 0:00:14.9]} 22... Qg5 {[%clk 0:01:59.5]} 23. Rfd1 {[%clk 0:00:10.5]}
23... Rxd5 {[%clk 0:01:50.9]} 24. Nxd5 {[%clk 0:00:12.4]} 24... Rxd5 {[%clk
0:01:50.5]} 25. Kh1 {[%clk 0:00:10.5]} 25... h5 {[%clk 0:01:47.6]} 26. h3 {[%clk
0:00:10.3]} 26... Qf4 {[%clk 0:01:47.3]} 27. Qxd5 {[%clk 0:00:09.3]} 27... Ne6
{[%clk 0:01:36.5]} 28. Qxh5 {[%clk 0:00:07.4]} 28... g6 {[%clk 0:01:32.1]} 29.
Qg4 {[%clk 0:00:07.5]} 29... Qe5 {[%clk 0:01:31.5]} 30. Qf3 {[%clk 0:00:07]}
30... Bc7 {[%clk 0:01:24.4]} 31. g3 {[%clk 0:00:08.4]} 31... Bb6 {[%clk
0:01:24.3]} 32. Rd7 {[%clk 0:00:09.1]} 32... Ng5 {[%clk 0:01:22.6]} 33. Qa8+
{[%clk 0:00:09.9]} 33... Kg7 {[%clk 0:01:22.1]} 34. Qd5 {[%clk 0:00:11.4]} 34...
Qf6 {[%clk 0:01:19.2]} 35. Qd2 {[%clk 0:00:07.8]} 35... Qf3+ {[%clk 0:01:16.5]}
36. Kh2 {[%clk 0:00:07.2]} 36... Qf5 {[%clk 0:01:15.6]} 37. Qf4 {[%clk 0:00:07]}
37... Qxh3+ {[%clk 0:01:14.4]} 38. Kg1 {[%clk 0:00:08.3]} 38... Qh5 {[%clk
0:01:14.4]} 39. Kg2 {[%clk 0:00:09.5]} 39... Qh3+ {[%clk 0:01:12.8]} 40. Kg1
{[%clk 0:00:10.9]} 40... Qh5 {[%clk 0:01:14.2]} 41. Kg2 {[%clk 0:00:10.7]} 41...
Qh3+ {[%clk 0:01:10.5]} 42. Kg1 {[%clk 0:00:11.5]} 42... Qh5 {[%clk 0:01:11]}
43. Qe5+ {[%clk 0:00:11.2]} 43... Kh7 {[%clk 0:01:09.1]} 44. Qf6 {[%clk
0:00:09.4]} 44... Nf3+ {[%clk 0:01:06.6]} 45. Kg2 {[%clk 0:00:09]} 45... Qh2+
{[%clk 0:01:07.4]} 46. Kxf3 {[%clk 0:00:10.3]} 46... Qxf2+ {[%clk 0:01:08.9]}
47. Ke4 {[%clk 0:00:10]} 47... Qxf6 {[%clk 0:01:10.5]} 48. R1d6 {[%clk
0:00:11.7]} 48... Qf5# {[%clk 0:01:10.6]} 0-1

[Event "*** MasterClass Titled Tuesday Blitz"]
[Site "Chess.com"]
[Date "2017.12.05"]
[Round "3"]
[White "RookSacrifice_OLD"]
[Black "Scott-fox21"]
[Result "0-1"]
[WhiteElo "1837"]
[BlackElo "2210"]
[TimeControl "180+2"]
[EndTime "14:50:20 PST"]
[Termination "Scott-fox21 won by checkmate"]

1. d4 {[%clk 0:03:01.1]} 1... d5 {[%clk 0:03:00.6]} 2. c4 {[%clk 0:03:01.8]}
2... e6 {[%clk 0:03:01.5]} 3. Nc3 {[%clk 0:03:02.4]} 3... c6 {[%clk 0:03:02.9]}
4. e3 {[%clk 0:03:01.2]} 4... Nf6 {[%clk 0:03:03]} 5. Nf3 {[%clk 0:03:02.2]}
5... a6 {[%clk 0:02:57.3]} 6. b3 {[%clk 0:02:56.7]} 6... Bb4 {[%clk 0:02:57.2]}
7. Bd2 {[%clk 0:02:57]} 7... Bd6 {[%clk 0:02:57.1]} 8. Bd3 {[%clk 0:02:55.9]}
8... O-O {[%clk 0:02:57.7]} 9. O-O {[%clk 0:02:51.5]} 9... c5 {[%clk 0:02:58.3]}
10. cxd5 {[%clk 0:02:49.3]} 10... exd5 {[%clk 0:02:58.3]} 11. Rc1 {[%clk
0:02:47.3]} 11... Nc6 {[%clk 0:02:37.5]} 12. dxc5 {[%clk 0:02:35.8]} 12... Bxc5
{[%clk 0:02:39.4]} 13. Ne2 {[%clk 0:02:37.2]} 13... Ba3 {[%clk 0:02:37.8]} 14.
Rb1 {[%clk 0:02:27.1]} 14... Qe7 {[%clk 0:02:35.4]} 15. Bc3 {[%clk 0:02:24.9]}
15... Bg4 {[%clk 0:02:35.6]} 16. Ned4 {[%clk 0:02:09.5]} 16... Ne4 {[%clk
0:02:33.4]} 17. Bb2 {[%clk 0:02:01.4]} 17... Nxd4 {[%clk 0:02:13.7]} 18. Bxd4
{[%clk 0:01:57.7]} 18... Ng5 {[%clk 0:02:03.2]} 19. Be2 {[%clk 0:01:57.1]} 19...
Ne4 {[%clk 0:01:57.9]} 20. Nd2 {[%clk 0:01:36]} 20... Bf5 {[%clk 0:01:52.9]} 21.
Nxe4 {[%clk 0:01:32.5]} 21... Bxe4 {[%clk 0:01:54]} 22. Bf3 {[%clk 0:01:33]}
22... Bxb1 {[%clk 0:01:54.2]} 23. Qxb1 {[%clk 0:01:33.5]} 23... Rad8 {[%clk
0:01:48.6]} 24. Rd1 {[%clk 0:01:31.4]} 24... Qg5 {[%clk 0:01:48]} 25. b4 {[%clk
0:01:22.3]} 25... a5 {[%clk 0:01:42.8]} 26. bxa5 {[%clk 0:01:15.7]} 26... Qe7
{[%clk 0:01:43.1]} 27. Bb6 {[%clk 0:01:03.2]} 27... Rd7 {[%clk 0:01:38.4]} 28.
Bg4 {[%clk 0:00:59.6]} 28... Rd6 {[%clk 0:01:37.8]} 29. Qb3 {[%clk 0:00:53.5]}
29... Rg6 {[%clk 0:01:38.2]} 30. Bf3 {[%clk 0:00:48.4]} 30... Bd6 {[%clk
0:01:37]} 31. Qxd5 {[%clk 0:00:46.1]} 31... Qh4 {[%clk 0:01:37.4]} 32. g3 {[%clk
0:00:46.1]} 32... Qh3 {[%clk 0:01:31.7]} 33. Bg2 {[%clk 0:00:45.8]} 33... Qe6
{[%clk 0:01:23.4]} 34. Qb5 {[%clk 0:00:43.1]} 34... Qxa2 {[%clk 0:01:22]} 35.
Bxb7 {[%clk 0:00:38.8]} 35... Rf6 {[%clk 0:01:20.6]} 36. e4 {[%clk 0:00:35.8]}
36... Qc2 {[%clk 0:01:10]} 37. Rf1 {[%clk 0:00:31]} 37... Qc3 {[%clk 0:01:02.4]}
38. a6 {[%clk 0:00:27.2]} 38... Bxg3 {[%clk 0:00:17.1]} 39. hxg3 {[%clk
0:00:27.5]} 39... Rh6 {[%clk 0:00:17.1]} 40. a7 {[%clk 0:00:25.4]} 40... Qf3
{[%clk 0:00:17.7]} 41. Qh5 {[%clk 0:00:08.8]} 41... Rxh5 {[%clk 0:00:18.8]} 42.
e5 {[%clk 0:00:07.7]} 42... Rh1# {[%clk 0:00:19.2]} 0-1

[Event "*** MasterClass Titled Tuesday Blitz"]
[Site "Chess.com"]
[Date "2017.12.05"]
[Round "3"]
[White "Hanging_pointer"]
[Black "ChessicallyInclined"]
[Result "1-0"]
[WhiteElo "2321"]
[BlackElo "2207"]
[TimeControl "180+2"]
[EndTime "14:50:31 PST"]
[Termination "Hanging_pointer won by resignation"]

1. e4 {[%clk 0:03:01.8]} 1... e5 {[%clk 0:02:58.8]} 2. Nf3 {[%clk 0:03:02.9]}
2... Nc6 {[%clk 0:02:59.3]} 3. Bc4 {[%clk 0:03:04.5]} 3... Nf6 {[%clk
0:02:59.4]} 4. d3 {[%clk 0:03:05.4]} 4... Be7 {[%clk 0:02:59.9]} 5. O-O {[%clk
0:03:06.6]} 5... d6 {[%clk 0:03:00.3]} 6. a4 {[%clk 0:03:06.6]} 6... O-O {[%clk
0:03:00.3]} 7. a5 {[%clk 0:03:07.9]} 7... a6 {[%clk 0:03:00.2]} 8. Re1 {[%clk
0:03:09.2]} 8... h6 {[%clk 0:03:00.7]} 9. c3 {[%clk 0:03:09.7]} 9... Be6 {[%clk
0:03:00.9]} 10. Nbd2 {[%clk 0:03:05.2]} 10... Qd7 {[%clk 0:02:58.6]} 11. b4
{[%clk 0:03:02.4]} 11... Na7 {[%clk 0:02:48.3]} 12. Nf1 {[%clk 0:03:02.7]} 12...
Nb5 {[%clk 0:02:37.5]} 13. Qc2 {[%clk 0:02:54.1]} 13... Rac8 {[%clk 0:02:28.7]}
14. Ba3 {[%clk 0:02:30.7]} 14... Qc6 {[%clk 0:02:17.4]} 15. Ne3 {[%clk
0:02:24.9]} 15... Nxa3 {[%clk 0:02:14]} 16. Rxa3 {[%clk 0:02:25.5]} 16... Bxc4
{[%clk 0:02:11.5]} 17. Nxc4 {[%clk 0:02:26.2]} 17... Rfe8 {[%clk 0:02:09.3]} 18.
Rb3 {[%clk 0:02:26.2]} 18... Bf8 {[%clk 0:02:08.1]} 19. Qb2 {[%clk 0:02:21.8]}
19... Nd7 {[%clk 0:01:59.5]} 20. Ne3 {[%clk 0:02:19.2]} 20... g6 {[%clk
0:01:50.4]} 21. Nd5 {[%clk 0:02:18.3]} 21... Bg7 {[%clk 0:01:45.3]} 22. Nd2
{[%clk 0:02:14.3]} 22... f5 {[%clk 0:01:33.4]} 23. c4 {[%clk 0:01:59.1]} 23...
b5 {[%clk 0:01:20.8]} 24. Rc1 {[%clk 0:01:37.6]} 24... Qb7 {[%clk 0:01:15.7]}
25. c5 {[%clk 0:01:33.5]} 25... c6 {[%clk 0:01:09]} 26. Nb6 {[%clk 0:01:25.2]}
26... Nxb6 {[%clk 0:01:05.6]} 27. axb6 {[%clk 0:01:26]} 27... d5 {[%clk
0:01:02.5]} 28. Ra3 {[%clk 0:01:13.7]} 28... Ra8 {[%clk 0:00:39.6]} 29. Qa2
{[%clk 0:01:05.5]} 29... Bf8 {[%clk 0:00:36.3]} 30. Ra1 {[%clk 0:01:03.2]} 30...
a5 {[%clk 0:00:21]} 31. Rxa5 {[%clk 0:01:02.8]} 31... Rxa5 {[%clk 0:00:20.2]}
32. Qxa5 {[%clk 0:01:04.7]} 32... Rb8 {[%clk 0:00:20.7]} 33. Qa7 {[%clk
0:01:03.2]} 33... Qc8 {[%clk 0:00:21]} 34. h3 {[%clk 0:00:49.6]} 34... d4 {[%clk
0:00:20.6]} 35. Nf3 {[%clk 0:00:40.9]} 35... Bg7 {[%clk 0:00:19.5]} 36. Qe7
{[%clk 0:00:38.2]} 36... Rb7 {[%clk 0:00:18]} 37. Qd6 {[%clk 0:00:34]} 37...
fxe4 {[%clk 0:00:17.4]} 38. dxe4 {[%clk 0:00:34.3]} 38... Qe8 {[%clk 0:00:16.7]}
39. Ra7 {[%clk 0:00:31.7]} 39... Qb8 {[%clk 0:00:14.6]} 40. Rxb7 {[%clk
0:00:23.4]} 40... Qxb7 {[%clk 0:00:11.3]} 41. Qc7 {[%clk 0:00:24.2]} 41... Qa8
{[%clk 0:00:11.4]} 42. b7 {[%clk 0:00:24.4]} 42... Qa1+ {[%clk 0:00:12]} 43. Kh2
{[%clk 0:00:25.5]} 43... d3 {[%clk 0:00:13]} 44. b8=Q+ {[%clk 0:00:26.3]} 44...
Kh7 {[%clk 0:00:13.4]} 45. Qbb7 {[%clk 0:00:27.6]} 1-0

[Event "*** MasterClass Titled Tuesday Blitz"]
[Site "Chess.com"]
[Date "2017.12.05"]
[Round "3"]
[White "sandromareco"]
[Black "Indianlad"]
[Result "1-0"]
[WhiteElo "2623"]
[BlackElo "2587"]
[TimeControl "180+2"]
[EndTime "14:50:33 PST"]
[Termination "sandromareco won by resignation"]

1. e4 {[%clk 0:03:01]} 1... e5 {[%clk 0:03:00.4]} 2. Nf3 {[%clk 0:03:01.7]} 2...
Nc6 {[%clk 0:03:01.7]} 3. Bc4 {[%clk 0:03:03.2]} 3... Bc5 {[%clk 0:03:00.5]} 4.
O-O {[%clk 0:03:03.5]} 4... Nf6 {[%clk 0:03:01.3]} 5. d3 {[%clk 0:03:04.7]} 5...
d6 {[%clk 0:03:01.4]} 6. a4 {[%clk 0:03:02.2]} 6... a6 {[%clk 0:03:01.7]} 7. c3
{[%clk 0:03:02.7]} 7... Ba7 {[%clk 0:03:02.8]} 8. Nbd2 {[%clk 0:03:03.7]} 8...
Ne7 {[%clk 0:02:59]} 9. Re1 {[%clk 0:03:03.8]} 9... Ng6 {[%clk 0:02:58.8]} 10.
b4 {[%clk 0:02:58]} 10... O-O {[%clk 0:02:59.7]} 11. Bb3 {[%clk 0:02:57.2]}
11... d5 {[%clk 0:02:57.2]} 12. Qc2 {[%clk 0:02:41]} 12... Ng4 {[%clk
0:02:50.4]} 13. Rf1 {[%clk 0:02:41.4]} 13... dxe4 {[%clk 0:02:46.6]} 14. Nxe4
{[%clk 0:02:39]} 14... Kh8 {[%clk 0:02:47.8]} 15. h3 {[%clk 0:02:32.4]} 15... f5
{[%clk 0:02:48.3]} 16. Neg5 {[%clk 0:02:27.3]} 16... Nh6 {[%clk 0:02:49.2]} 17.
Re1 {[%clk 0:02:25.8]} 17... Qf6 {[%clk 0:02:47.5]} 18. Bb2 {[%clk 0:02:15]}
18... Bd7 {[%clk 0:02:47.6]} 19. c4 {[%clk 0:02:15.1]} 19... Rae8 {[%clk
0:02:48.8]} 20. c5 {[%clk 0:02:14.6]} 20... c6 {[%clk 0:02:45.4]} 21. Rad1
{[%clk 0:02:09.3]} 21... Bb8 {[%clk 0:02:44.9]} 22. Bc3 {[%clk 0:01:59.4]} 22...
Nf4 {[%clk 0:02:38]} 23. Qb2 {[%clk 0:01:59.8]} 23... Ng6 {[%clk 0:02:21]} 24.
Qa2 {[%clk 0:01:31.9]} 24... Re7 {[%clk 0:02:02.4]} 25. d4 {[%clk 0:01:24.3]}
25... e4 {[%clk 0:01:58.8]} 26. d5 {[%clk 0:01:09.8]} 26... Qxc3 {[%clk
0:01:56.8]} 27. d6 {[%clk 0:01:10.1]} 27... Ree8 {[%clk 0:01:44.9]} 28. Nd4
{[%clk 0:01:10.1]} 28... Ne5 {[%clk 0:01:36]} 29. Be6 {[%clk 0:00:58.3]} 29...
Qxb4 {[%clk 0:01:05.8]} 30. Bxd7 {[%clk 0:00:57.5]} 30... Nxd7 {[%clk
0:01:06.8]} 31. Nde6 {[%clk 0:00:57.7]} 31... Rf6 {[%clk 0:00:54.1]} 32. Rb1
{[%clk 0:00:57.2]} 32... Qa5 {[%clk 0:00:51.2]} 33. Rec1 {[%clk 0:00:57.8]}
33... b5 {[%clk 0:00:41.2]} 34. cxb6 {[%clk 0:00:58.1]} 34... Bxd6 {[%clk
0:00:40.6]} 35. Rxc6 {[%clk 0:00:54.3]} 35... Qe5 {[%clk 0:00:42.1]} 36. b7
{[%clk 0:00:50.9]} 36... Qh2+ {[%clk 0:00:42.2]} 37. Kf1 {[%clk 0:00:52.1]}
37... Nc5 {[%clk 0:00:18.9]} 38. Rc8 {[%clk 0:00:47.4]} 38... Rff8 {[%clk
0:00:15]} 39. Nxf8 {[%clk 0:00:47]} 39... Rxf8 {[%clk 0:00:16.9]} 40. Rxf8+
{[%clk 0:00:47.5]} 40... Bxf8 {[%clk 0:00:16.3]} 41. b8=Q {[%clk 0:00:47.5]} 1-0

[Event "*** MasterClass Titled Tuesday Blitz"]
[Site "Chess.com"]
[Date "2017.12.05"]
[Round "3"]
[White "toad"]
[Black "icychess54"]
[Result "1-0"]
[WhiteElo "2195"]
[BlackElo "2138"]
[TimeControl "180+2"]
[EndTime "14:50:39 PST"]
[Termination "toad won by checkmate"]

1. d4 {[%clk 0:03:01.9]} 1... d5 {[%clk 0:03:00.1]} 2. c4 {[%clk 0:03:02.7]}
2... c6 {[%clk 0:03:00.2]} 3. Nf3 {[%clk 0:03:03.8]} 3... Nf6 {[%clk 0:03:01.3]}
4. e3 {[%clk 0:03:04.9]} 4... e6 {[%clk 0:03:02.7]} 5. b3 {[%clk 0:03:05.3]}
5... Nbd7 {[%clk 0:03:04.1]} 6. Bb2 {[%clk 0:03:06.2]} 6... Bd6 {[%clk
0:03:05.6]} 7. Bd3 {[%clk 0:03:07.1]} 7... O-O {[%clk 0:03:07]} 8. Nbd2 {[%clk
0:03:08.4]} 8... b6 {[%clk 0:03:08.5]} 9. O-O {[%clk 0:03:09.1]} 9... Bb7 {[%clk
0:03:10]} 10. Qe2 {[%clk 0:03:10.2]} 10... Re8 {[%clk 0:03:10.8]} 11. e4 {[%clk
0:03:10.1]} 11... dxe4 {[%clk 0:03:08.8]} 12. Nxe4 {[%clk 0:03:12]} 12... Be7
{[%clk 0:03:08.9]} 13. Rad1 {[%clk 0:03:06.1]} 13... Qc7 {[%clk 0:03:07.1]} 14.
Ne5 {[%clk 0:03:04.9]} 14... c5 {[%clk 0:02:43.8]} 15. Nxd7 {[%clk 0:02:58.8]}
15... Nxd7 {[%clk 0:02:44.4]} 16. dxc5 {[%clk 0:02:58.5]} 16... Nxc5 {[%clk
0:02:45.1]} 17. Nxc5 {[%clk 0:02:53.7]} 17... Bxc5 {[%clk 0:02:47]} 18. Qh5
{[%clk 0:02:18.3]} 18... g6 {[%clk 0:02:21.5]} 19. Qh6 {[%clk 0:02:13.1]} 19...
e5 {[%clk 0:02:22.3]} 20. Be2 {[%clk 0:01:59.5]} 20... Rad8 {[%clk 0:02:00.8]}
21. Bc1 {[%clk 0:01:55.2]} 21... Qc6 {[%clk 0:01:44.3]} 22. Qg5 {[%clk 0:01:38]}
22... f6 {[%clk 0:01:31]} 23. Qg3 {[%clk 0:01:36.1]} 23... Bd4 {[%clk
0:01:13.9]} 24. h4 {[%clk 0:01:14]} 24... e4 {[%clk 0:00:34.1]} 25. h5 {[%clk
0:01:10.9]} 25... Be5 {[%clk 0:00:34.8]} 26. Qh3 {[%clk 0:00:40]} 26... g5
{[%clk 0:00:23.9]} 27. Bg4 {[%clk 0:00:38.8]} 27... a5 {[%clk 0:00:09.8]} 28.
Be3 {[%clk 0:00:38.9]} 28... Rd6 {[%clk 0:00:07.7]} 29. Bd7 {[%clk 0:00:30.5]}
29... Rxd1 {[%clk 0:00:07]} 30. Bxc6 {[%clk 0:00:25.2]} 30... Rxf1+ {[%clk
0:00:07.3]} 31. Kxf1 {[%clk 0:00:27.1]} 31... Bxc6 {[%clk 0:00:08.5]} 32. Bxb6
{[%clk 0:00:27]} 32... Kg7 {[%clk 0:00:05.7]} 33. Be3 {[%clk 0:00:23.4]} 33...
Rd8 {[%clk 0:00:06.7]} 34. Qe6 {[%clk 0:00:20.7]} 34... Rd6 {[%clk 0:00:06.6]}
35. Qe7+ {[%clk 0:00:21.4]} 35... Kh6 {[%clk 0:00:08.1]} 36. f4 {[%clk
0:00:14.9]} 36... gxf4 {[%clk 0:00:07.7]} 37. Qf8+ {[%clk 0:00:09.7]} 37... Kxh5
{[%clk 0:00:08.2]} 38. Bc5 {[%clk 0:00:09.1]} 38... Rd1+ {[%clk 0:00:08.3]} 39.
Ke2 {[%clk 0:00:10.4]} 39... Rd7 {[%clk 0:00:08.1]} 40. Be7 {[%clk 0:00:10.7]}
40... Kg4 {[%clk 0:00:09]} 41. Bxf6 {[%clk 0:00:11.5]} 41... Bd6 {[%clk
0:00:08.5]} 42. Qg8+ {[%clk 0:00:11.6]} 42... Kf5 {[%clk 0:00:10]} 43. Qg5+
{[%clk 0:00:12.6]} 43... Ke6 {[%clk 0:00:11.5]} 44. Bg7 {[%clk 0:00:13.1]} 44...
e3 {[%clk 0:00:11.1]} 45. Qf6# {[%clk 0:00:13.9]} 1-0

[Event "*** MasterClass Titled Tuesday Blitz"]
[Site "Chess.com"]
[Date "2017.12.05"]
[Round "3"]
[White "chessking2151"]
[Black "SharkAnto55"]
[Result "0-1"]
[WhiteElo "2352"]
[BlackElo "2368"]
[TimeControl "180+2"]
[EndTime "14:50:52 PST"]
[Termination "SharkAnto55 won on time"]

1. e4 {[%clk 0:03:01.9]} 1... c5 {[%clk 0:02:37.7]} 2. Nf3 {[%clk 0:03:01.7]}
2... d6 {[%clk 0:02:38.8]} 3. d4 {[%clk 0:03:02.9]} 3... cxd4 {[%clk 0:02:40.7]}
4. Nxd4 {[%clk 0:03:04.8]} 4... Nf6 {[%clk 0:02:42.4]} 5. Nc3 {[%clk 0:03:06.4]}
5... a6 {[%clk 0:02:43.8]} 6. Be3 {[%clk 0:03:07]} 6... e5 {[%clk 0:02:44.1]} 7.
Nb3 {[%clk 0:03:08.5]} 7... Be7 {[%clk 0:02:44.8]} 8. f3 {[%clk 0:03:09.4]} 8...
Be6 {[%clk 0:02:45.2]} 9. Qd2 {[%clk 0:03:10.7]} 9... O-O {[%clk 0:02:46.4]} 10.
O-O-O {[%clk 0:03:12.1]} 10... a5 {[%clk 0:02:47.9]} 11. Bb5 {[%clk 0:03:13.7]}
11... Na6 {[%clk 0:02:48.5]} 12. g4 {[%clk 0:03:08.3]} 12... Nc7 {[%clk
0:02:44.1]} 13. Bb6 {[%clk 0:03:05.2]} 13... Qb8 {[%clk 0:02:41.4]} 14. Kb1
{[%clk 0:03:01.4]} 14... Nxb5 {[%clk 0:01:55.4]} 15. Nxb5 {[%clk 0:03:01.1]}
15... a4 {[%clk 0:01:56.4]} 16. Nc1 {[%clk 0:02:57.9]} 16... Rc8 {[%clk
0:01:46.4]} 17. Bf2 {[%clk 0:02:27.6]} 17... Bc4 {[%clk 0:01:34.4]} 18. Nxd6
{[%clk 0:01:32.7]} 18... Rd8 {[%clk 0:01:30.6]} 19. Bc5 {[%clk 0:01:25.8]} 19...
b6 {[%clk 0:00:51.3]} 20. Ba3 {[%clk 0:01:12.1]} 20... Be6 {[%clk 0:00:42.2]}
21. f4 {[%clk 0:00:47.6]} 21... Nxe4 {[%clk 0:00:37]} 22. Qg2 {[%clk 0:00:32.5]}
22... Nxd6 {[%clk 0:00:28.1]} 23. fxe5 {[%clk 0:00:33.1]} 23... Nc8 {[%clk
0:00:28.8]} 24. Rxd8+ {[%clk 0:00:33.1]} 24... Bxd8 {[%clk 0:00:30.7]} 25. Nd3
{[%clk 0:00:31.7]} 25... Ra5 {[%clk 0:00:29.3]} 26. Rd1 {[%clk 0:00:30.4]} 26...
Be7 {[%clk 0:00:28.4]} 27. Bb4 {[%clk 0:00:27.9]} 27... Rd5 {[%clk 0:00:26.2]}
28. Bxe7 {[%clk 0:00:24.5]} 28... Nxe7 {[%clk 0:00:28.1]} 29. a3 {[%clk
0:00:25.7]} 29... Nc6 {[%clk 0:00:26.7]} 30. Re1 {[%clk 0:00:24.8]} 30... h6
{[%clk 0:00:24.1]} 31. g5 {[%clk 0:00:24.4]} 31... hxg5 {[%clk 0:00:21.1]} 32.
Qxg5 {[%clk 0:00:25.4]} 32... Qd8 {[%clk 0:00:21.8]} 33. Qg3 {[%clk 0:00:25.8]}
33... Nd4 {[%clk 0:00:20.5]} 34. Nf4 {[%clk 0:00:23.8]} 34... Nf5 {[%clk
0:00:17.8]} 35. Qg1 {[%clk 0:00:16.3]} 35... Rd4 {[%clk 0:00:16.9]} 36. Nh5
{[%clk 0:00:16.9]} 36... g6 {[%clk 0:00:13.5]} 37. Nf6+ {[%clk 0:00:17.2]} 37...
Kg7 {[%clk 0:00:14.3]} 38. Ng4 {[%clk 0:00:17.9]} 38... Nh4 {[%clk 0:00:13.6]}
39. Nf6 {[%clk 0:00:08.6]} 39... Nf3 {[%clk 0:00:13.8]} 40. Nh5+ {[%clk
0:00:04.6]} 40... Kf8 {[%clk 0:00:13.6]} 41. Qe3 {[%clk 0:00:05.1]} 41... Rd1+
{[%clk 0:00:11.6]} 0-1